bitfinex-derivatives/quotes_BTCF0:USTF0_20241208
["timestamp","ask_amount","ask_price","bid_price","bid_amount"]
[1733644065525,0.61174263,99838.0,99837.0,8.453e-05]
[1733644065925,0.431843,99838.0,99837.0,8.453e-05]
[1733644067416,0.61174263,99838.0,99837.0,8.453e-05]
[1733644067616,0.431843,99838.0,99837.0,8.453e-05]
[1733644067916,0.61174263,99838.0,99837.0,8.453e-05]
[1733644068125,0.431843,99838.0,99837.0,8.453e-05]
[1733644070131,0.61174263,99838.0,99837.0,8.453e-05]
[1733644070437,0.61181311,99838.0,99837.0,8.453e-05]
[1733644070633,0.431843,99838.0,99837.0,8.453e-05]
[1733644070827,0.071043,99838.0,99837.0,8.453e-05]
[1733644071031,0.431843,99838.0,99837.0,8.453e-05]
[1733644071623,0.61181311,99838.0,99837.0,8.453e-05]
[1733644072525,0.61186686,99838.0,99837.0,8.453e-05]
[1733644072727,0.431843,99838.0,99837.0,8.453e-05]
[1733644075238,0.53363977,99838.0,99837.0,8.453e-05]
[1733644075537,0.431843,99838.0,99837.0,8.453e-05]
[1733644077339,0.53362499,99838.0,99837.0,8.453e-05]
[1733644077735,0.53369578,99838.0,99837.0,8.453e-05]
[1733644078128,0.431843,99838.0,99837.0,8.453e-05]
[1733644079033,0.53361296,99838.0,99837.0,8.453e-05]
[1733644079433,0.431843,99838.0,99837.0,8.453e-05]
[1733644079735,0.3668,99838.0,99837.0,0.04512853]
[1733644081238,0.3628,99838.0,99837.0,0.05539865]
[1733644081733,0.3608,99838.0,99837.0,0.05539865]
[1733644084545,0.405843,99838.0,99837.0,0.05539865]
[1733644086539,0.52584284,99838.0,99837.0,0.05539865]
[1733644086933,0.405843,99838.0,99837.0,0.05539865]
[1733644087146,0.52584285,99838.0,99837.0,0.05539865]
[1733644088243,0.405843,99838.0,99837.0,0.05539865]
[1733644096247,0.045043,99838.0,99837.0,0.05539865]
[1733644100464,0.16504285,99838.0,99837.0,0.05539865]
[1733644103151,0.045043,99838.0,99837.0,0.05539865]
[1733644107564,0.045043,99838.0,99837.0,0.04512853]
[1733644109255,0.045043,99838.0,99837.0,8.453e-05]
[1733644110464,0.22526775,99838.0,99837.0,8.453e-05]
[1733644111160,0.045043,99838.0,99837.0,8.453e-05]
[1733644111363,0.22523906,99838.0,99837.0,8.453e-05]
[1733644111558,0.22823906,99838.0,99837.0,8.453e-05]
[1733644111758,0.23023906,99838.0,99837.0,8.453e-05]
[1733644112754,0.24019641,99838.0,99837.0,8.453e-05]
[1733644113667,0.42080035,99838.0,99837.0,8.453e-05]
[1733644117068,0.41980035,99838.0,99837.0,8.453e-05]
[1733644117966,0.43980035,99838.0,99837.0,8.453e-05]
[1733644118361,0.43980035,99838.0,99837.0,0.01448377]
[1733644121568,0.61999641,99838.0,99837.0,0.01448377]
[1733644121768,0.43980035,99838.0,99837.0,0.01448377]
[1733644127672,0.43980035,99838.0,99837.0,0.01448411]
[1733644130489,0.61984656,99838.0,99837.0,0.01448411]
[1733644131483,0.61984656,99838.0,99837.0,0.01448457]
[1733644132277,0.43980035,99838.0,99837.0,0.01448457]
[1733644134671,0.43980035,99838.0,99837.0,0.00321497]
[1733644134890,0.43980035,99838.0,99837.0,0.01448478]
[1733644137782,0.43980035,99838.0,99837.0,8.453e-05]
[1733644138001,0.43980035,99838.0,99837.0,0.01448475]
[1733644138887,0.54209469,99838.0,99837.0,0.01448475]
[1733644140485,0.43980035,99838.0,99837.0,0.01448475]
[1733644140676,0.54210125,99838.0,99837.0,0.01448475]
[1733644140875,0.54212084,99838.0,99837.0,0.01448475]
[1733644144888,0.43980035,99838.0,99837.0,0.01448475]
[1733644146998,0.54217095,99838.0,99837.0,0.01448475]
[1733644149391,0.54217095,99838.0,99837.0,0.00822378]
[1733644150193,0.54194768,99838.0,99837.0,0.00822378]
[1733644152397,0.43980035,99838.0,99837.0,0.00822378]
[1733644152701,0.54187569,99838.0,99837.0,0.00822378]
[1733644153296,0.43980035,99838.0,99837.0,0.00822378]
[1733644153889,0.54159689,99838.0,99837.0,0.00822378]
[1733644154989,0.43980035,99838.0,99837.0,0.00822378]
[1733644155196,0.54143359,99838.0,99837.0,0.00822378]
[1733644155693,0.54163388,99838.0,99837.0,0.00822378]
[1733644156003,0.43980035,99838.0,99837.0,0.00822378]
[1733644156505,0.1808144,99838.0,99837.0,0.00822378]
[1733644156807,0.9024144,99838.0,99837.0,0.00822378]
[1733644157905,1.11237208,99838.0,99837.0,0.00822378]
[1733644158205,0.9024144,99838.0,99837.0,0.00822378]
[1733644164904,0.9024169,99838.0,99837.0,0.00822378]
[1733644165105,0.9024169,99838.0,99837.0,8.453e-05]
[1733644165313,0.9024169,99838.0,99837.0,0.00822425]
[1733644167703,1.11237458,99838.0,99837.0,0.00822425]
[1733644168910,0.9024169,99838.0,99837.0,0.00822425]
[1733644169916,0.90236429,99838.0,99837.0,0.00822425]
[1733644171915,1.11232197,99838.0,99837.0,0.00822425]
[1733644172112,0.90236429,99838.0,99837.0,0.00822425]
[1733644172511,0.80060035,99838.0,99837.0,0.00822425]
[1733644172911,0.90217073,99838.0,99837.0,0.00822425]
[1733644173213,0.90223722,99838.0,99837.0,0.00822425]
[1733644173514,1.11245957,99838.0,99837.0,0.00822425]
[1733644174107,0.045046,99831.0,99830.0,0.01]
[1733644174308,0.14668387,99831.0,99830.0,0.00626141]
[1733644175614,0.50748387,99831.0,99830.0,0.00626141]
[1733644177420,0.50748387,99831.0,99826.0,8.937e-05]
[1733644177421,0.045048,99827.0,99826.0,8.937e-05]
[1733644177911,0.24529216,99827.0,99826.0,8.937e-05]
[1733644178115,0.16661721,99827.0,99826.0,0.00635112]
[1733644178315,0.16661721,99827.0,99826.0,8.937e-05]
[1733644178821,0.16661721,99827.0,99826.0,0.00108937]
[1733644179419,0.52741721,99827.0,99826.0,0.00108937]
[1733644180110,0.52741721,99827.0,99826.0,0.00208937]
[1733644180512,0.53729817,99827.0,99826.0,0.00208937]
[1733644181215,0.43572896,99827.0,99826.0,0.00208937]
[1733644181924,0.53545176,99827.0,99826.0,0.00208937]
[1733644184222,0.53545176,99827.0,99826.0,0.00709884]
[1733644184611,0.53556957,99827.0,99826.0,0.00709884]
[1733644186328,0.53556957,99827.0,99826.0,0.00108937]
[1733644186522,0.53656957,99827.0,99826.0,0.00422047]
[1733644186717,0.53656957,99827.0,99826.0,0.00823017]
[1733644187020,0.53956957,99827.0,99826.0,0.00823017]
[1733644187223,0.90136957,99827.0,99826.0,0.00823017]
[1733644188322,0.90136957,99827.0,99826.0,0.00322047]
[1733644188520,0.90106412,99827.0,99826.0,0.00322047]
[1733644189221,0.17946412,99827.0,99826.0,0.00322047]
[1733644189423,0.90106412,99827.0,99826.0,0.00322047]
[1733644189920,0.90106412,99827.0,99826.0,8.937e-05]
[1733644190123,0.90106412,99827.0,99826.0,0.00322046]
[1733644194635,0.90103605,99827.0,99826.0,0.00322046]
[1733644197130,0.90103605,99827.0,99826.0,8.937e-05]
[1733644197432,0.17943605,99827.0,99826.0,0.00322043]
[1733644197631,0.90103605,99827.0,99826.0,0.00322043]
[1733644198328,0.80164677,99827.0,99826.0,0.00823013]
[1733644198732,0.08004677,99827.0,99826.0,0.00823013]
[1733644198931,0.80164677,99827.0,99826.0,0.00823013]
[1733644200838,0.08004677,99827.0,99826.0,0.00823013]
[1733644201029,0.80164677,99827.0,99826.0,0.00823013]
[1733644201722,0.90106927,99827.0,99826.0,0.00322043]
[1733644201926,1.11128627,99827.0,99818.0,0.01]
[1733644202128,1.11128627,99827.0,99812.0,0.01]
[1733644202129,0.045055,99813.0,99812.0,0.01]
[1733644202328,0.045055,99813.0,99808.0,0.0015028]
[1733644202329,0.045056,99809.0,99808.0,0.0015028]
[1733644202531,0.045056,99809.0,99808.0,0.00776528]
[1733644203129,0.1951589,99809.0,99808.0,0.00787268]
[1733644203322,0.045056,99809.0,99808.0,0.00787268]
[1733644203723,0.046056,99809.0,99808.0,0.01287268]
[1733644204228,0.046056,99809.0,99808.0,0.01321953]
[1733644205034,0.046056,99809.0,99808.0,0.01521953]
[1733644205332,0.046056,99809.0,99808.0,0.01487268]
[1733644205543,0.046056,99809.0,99808.0,0.19466439]
[1733644206040,0.046056,99809.0,99808.0,0.01487268]
[1733644206243,0.046056,99809.0,99808.0,0.19466439]
[1733644206629,0.046056,99809.0,99808.0,0.01521908]
[1733644206831,0.1961683,99809.0,99808.0,0.01487214]
[1733644207031,0.1961683,99809.0,99808.0,0.01521908]
[1733644207331,0.1961683,99809.0,99808.0,0.01487214]
[1733644209238,0.046056,99809.0,99808.0,0.01487214]
[1733644210327,0.046056,99809.0,99808.0,0.01487234]
[1733644210533,0.19626351,99809.0,99808.0,0.01487234]
[1733644210733,0.046056,99809.0,99808.0,0.01487234]
[1733644211133,0.046056,99809.0,99808.0,0.01521953]
[1733644211529,0.046056,99809.0,99808.0,0.01487234]
[1733644212134,0.046056,99809.0,99808.0,0.01988205]
[1733644214156,0.046056,99809.0,99808.0,0.02301312]
[1733644214454,0.046056,99809.0,99808.0,0.20289137]
[1733644215146,0.046056,99809.0,99808.0,0.02336034]
[1733644215440,0.046056,99809.0,99808.0,0.20289137]
[1733644217142,0.046056,99809.0,99808.0,0.18848845]
[1733644217339,0.046056,99809.0,99808.0,0.20289137]
[1733644218649,0.046056,99809.0,99808.0,0.02336035]
[1733644219042,0.046056,99809.0,99808.0,0.02301312]
[1733644219946,0.046056,99809.0,99808.0,0.20291724]
[1733644220552,0.046056,99809.0,99808.0,0.02301323]
[1733644225550,0.19630171,99809.0,99808.0,0.02301323]
[1733644226352,0.046056,99809.0,99808.0,0.02301323]
[1733644226842,0.19630186,99809.0,99808.0,0.02301323]
[1733644227038,0.046056,99809.0,99808.0,0.02301323]
[1733644228248,0.046056,99809.0,99808.0,0.20287278]
[1733644228548,0.046056,99809.0,99808.0,0.02301323]
[1733644228749,0.046056,99809.0,99808.0,0.02336028]
[1733644229846,0.046056,99809.0,99808.0,0.02301323]
[1733644230449,0.046056,99809.0,99808.0,0.20287278]
[1733644231162,0.046056,99809.0,99808.0,0.02301337]
[1733644233150,0.046056,99809.0,99808.0,0.20286146]
[1733644233860,0.046056,99809.0,99808.0,0.02301337]
[1733644234065,0.046056,99809.0,99808.0,0.20286146]
[1733644234561,0.046056,99809.0,99808.0,0.2028614]
[1733644234753,0.046056,99809.0,99808.0,0.02301331]
[1733644234946,0.046056,99809.0,99808.0,0.2028614]
[1733644235461,0.046056,99809.0,99808.0,0.02301331]
[1733644235755,0.046056,99809.0,99808.0,0.2028614]
[1733644236353,0.046056,99809.0,99808.0,0.02301331]
[1733644236745,0.046056,99809.0,99808.0,0.2028614]
[1733644237857,0.046056,99809.0,99808.0,0.02301331]
[1733644238248,0.046056,99809.0,99808.0,0.2028614]
[1733644238453,0.046056,99809.0,99808.0,0.18845829]
[1733644238650,0.046056,99809.0,99808.0,0.2028614]
[1733644238853,0.046056,99809.0,99808.0,0.02301346]
[1733644239059,0.046056,99809.0,99808.0,0.20286155]
[1733644239654,0.046056,99809.0,99808.0,0.02301346]
[1733644239861,0.046056,99809.0,99808.0,0.20286155]
[1733644240252,0.046056,99809.0,99808.0,0.02301346]
[1733644241667,0.046056,99809.0,99808.0,0.02336066]
[1733644242158,0.046056,99809.0,99808.0,0.02301346]
[1733644242661,0.046056,99809.0,99808.0,0.02336066]
[1733644243256,0.046056,99809.0,99808.0,0.02301346]
[1733644243454,0.046056,99809.0,99808.0,0.20291568]
[1733644243855,0.046056,99809.0,99808.0,0.02301346]
[1733644244163,0.046056,99809.0,99808.0,0.20291538]
[1733644245464,0.046056,99809.0,99808.0,0.02301331]
[1733644246467,0.046056,99809.0,99808.0,0.0086102]
[1733644246759,0.046056,99809.0,99808.0,0.02301326]
[1733644248367,0.046056,99809.0,99808.0,0.2029277]
[1733644248562,0.046056,99809.0,99808.0,0.02301326]
[1733644249254,0.046056,99809.0,99808.0,0.02336075]
[1733644249460,0.046056,99809.0,99808.0,0.20327221]
[1733644249653,0.046056,99809.0,99808.0,0.202925]
[1733644250465,0.046056,99809.0,99808.0,0.02301354]
[1733644254159,0.046056,99809.0,99808.0,0.20293895]
[1733644254665,0.046056,99809.0,99808.0,0.02301354]
[1733644255369,0.046056,99809.0,99808.0,0.20293896]
[1733644255571,0.046056,99809.0,99808.0,0.02336084]
[1733644255966,0.046056,99809.0,99808.0,0.02336058]
[1733644256172,0.046056,99809.0,99808.0,0.02301328]
[1733644259469,0.046056,99809.0,99808.0,0.0086102]
[1733644259668,0.046056,99809.0,99808.0,0.02301294]
[1733644260574,0.046056,99809.0,99808.0,0.02336037]
[1733644260772,0.046056,99809.0,99808.0,0.02301294]
[1733644263782,0.046056,99809.0,99808.0,0.20292948]
[1733644264277,0.046056,99809.0,99808.0,0.02301294]
[1733644264974,0.046056,99809.0,99808.0,0.02151014]
[1733644265570,0.046056,99809.0,99808.0,0.0218574]
[1733644265869,0.046056,99809.0,99808.0,0.20178203]
[1733644266268,0.046056,99809.0,99808.0,0.20142982]
[1733644266467,0.046056,99809.0,99808.0,0.02151014]
[1733644266680,0.046056,99809.0,99808.0,0.02185745]
[1733644268878,0.046056,99809.0,99808.0,0.02185772]
[1733644269080,0.046056,99809.0,99808.0,0.0071074]
[1733644269292,0.046056,99809.0,99808.0,0.02185773]
[1733644269476,0.046056,99809.0,99808.0,0.02151047]
[1733644269877,0.046056,99809.0,99808.0,0.20143489]
[1733644270579,0.046056,99809.0,99808.0,0.20143927]
[1733644271688,0.046056,99809.0,99808.0,0.02151047]
[1733644272073,0.046056,99809.0,99808.0,0.20143927]
[1733644272274,0.046056,99809.0,99808.0,0.02151062]
[1733644272586,0.046056,99809.0,99808.0,0.20143942]
[1733644273576,0.046056,99809.0,99808.0,0.02151062]
[1733644274589,0.046056,99809.0,99808.0,0.20146901]
[1733644275487,0.046056,99809.0,99808.0,0.02185802]
[1733644275683,0.046056,99809.0,99808.0,0.02151062]
[1733644276080,0.046056,99809.0,99808.0,0.02185802]
[1733644276283,0.046056,99809.0,99808.0,0.02151062]
[1733644282888,0.046056,99809.0,99808.0,0.02151055]
[1733644286190,0.046056,99809.0,99808.0,0.02185791]
[1733644286391,0.046056,99809.0,99808.0,0.0071074]
[1733644286588,0.046056,99809.0,99808.0,0.20149606]
[1733644287093,0.046056,99809.0,99808.0,0.02151052]
[1733644287385,0.046056,99809.0,99808.0,0.20149438]
[1733644289889,0.046056,99809.0,99808.0,0.20149464]
[1733644290590,0.046056,99809.0,99808.0,0.02151078]
[1733644291785,0.046056,99809.0,99808.0,0.20151007]
[1733644291990,0.046056,99809.0,99808.0,0.02151078]
[1733644296495,0.406856,99809.0,99808.0,0.02151078]
[1733644296688,0.046056,99809.0,99808.0,0.02151078]
[1733644296890,0.406856,99809.0,99808.0,0.02151078]
[1733644297093,0.406856,99809.0,99808.0,0.01211727]
[1733644297284,0.406856,99809.0,99808.0,0.02151078]
[1733644300602,0.406856,99809.0,99808.0,0.20151016]
[1733644300900,0.406856,99809.0,99808.0,0.02151087]
[1733644301095,0.406856,99809.0,99808.0,0.20151016]
[1733644301288,0.406856,99809.0,99808.0,0.02151087]
[1733644301789,0.406856,99809.0,99808.0,0.02185835]
[1733644301996,0.58718731,99809.0,99808.0,0.02151087]
[1733644302199,0.406856,99809.0,99808.0,0.02151087]
[1733644302495,0.58717948,99809.0,99808.0,0.02151087]
[1733644302694,0.406856,99809.0,99808.0,0.20151016]
[1733644302901,0.406856,99809.0,99808.0,0.02151087]
[1733644306503,0.406856,99809.0,99808.0,0.20150564]
[1733644307605,0.406856,99809.0,99808.0,0.0215112]
[1733644308299,0.5871579,99809.0,99808.0,0.0215112]
[1733644309104,0.416856,99809.0,99808.0,0.0215112]
[1733644309398,0.51827732,99809.0,99808.0,0.0215112]
[1733644309604,0.51827732,99809.0,99802.0,0.01]
[1733644309605,0.63653726,99809.0,99802.0,0.01]
[1733644309806,0.04506,99801.0,99800.0,0.1]
[1733644309994,0.14648132,99801.0,99800.0,0.10626349]
[1733644310399,0.14648132,99801.0,99800.0,0.1]
[1733644310898,0.16648132,99801.0,99800.0,0.104]
[1733644311491,0.16648132,99801.0,99800.0,0.103]
[1733644312203,0.16648132,99801.0,99800.0,0.104]
[1733644312704,0.17629781,99801.0,99800.0,0.104]
[1733644313497,0.07487649,99801.0,99800.0,0.104]
[1733644315597,0.05487649,99801.0,99800.0,0.104]
[1733644319704,0.05487649,99801.0,99800.0,0.10901074]
[1733644321407,0.05487649,99801.0,99800.0,0.10901073]
[1733644321600,0.05487649,99801.0,99800.0,0.11214244]
[1733644322405,0.04506,99801.0,99800.0,0.11214244]
[1733644327411,0.04506,99801.0,99800.0,0.104]
[1733644327613,0.04506,99801.0,99800.0,0.11214219]
[1733644330505,0.3608,99803.0,99802.0,0.045059]
[1733644330706,0.3608,99803.0,99802.0,0.05320119]
[1733644331012,0.3608,99803.0,99802.0,0.05946295]
[1733644331207,0.3608,99803.0,99802.0,0.05445288]
[1733644331413,0.3608,99803.0,99802.0,0.05946295]
[1733644331816,0.405859,99803.0,99802.0,0.05946295]
[1733644332311,0.405859,99803.0,99802.0,0.06046295]
[1733644335316,0.55583195,99803.0,99802.0,0.06046295]
[1733644337217,0.55583195,99803.0,99802.0,0.09106295]
[1733644337618,0.405859,99803.0,99802.0,0.09106295]
[1733644338017,0.14997295,99805.0,99802.0,0.04600382]
[1733644338318,0.005,99806.0,99802.0,0.04600382]
[1733644338319,0.12504879,99806.0,99805.0,0.045058]
[1733644338521,0.12004879,99809.0,99805.0,0.05946182]
[1733644338727,0.12004879,99810.0,99809.0,0.045056]
[1733644338915,0.12004879,99810.0,99809.0,0.05980674]
[1733644339116,0.16510479,99810.0,99809.0,0.05980674]
[1733644339423,0.16510479,99810.0,99809.0,0.01440382]
[1733644339424,0.045056,99810.0,99809.0,0.01440382]
[1733644339918,0.046056,99810.0,99809.0,0.01440382]
[1733644340810,0.19603848,99810.0,99809.0,0.01440382]
[1733644341010,0.19703831,99810.0,99809.0,0.01440382]
[1733644341411,0.047056,99810.0,99809.0,0.01440382]
[1733644342532,0.19703528,99810.0,99809.0,0.01440382]
[1733644343418,0.55783528,99810.0,99809.0,0.01440382]
[1733644344730,0.407856,99810.0,99809.0,0.01440382]
[1733644345026,0.045057,99807.0,99806.0,0.045058]
[1733644345217,0.045057,99807.0,99806.0,0.05946138]
[1733644346728,0.045057,99807.0,99806.0,0.05946147]
[1733644348527,0.045057,99807.0,99806.0,0.05946157]
[1733644350328,0.045057,99807.0,99806.0,0.01440357]
[1733644351824,0.14997699,99809.0,99803.0,0.045059]
[1733644352027,0.14997699,99809.0,99804.0,0.01440349]
[1733644352234,0.045059,99804.0,99803.0,0.045059]
[1733644352417,0.045059,99804.0,99803.0,0.0594624]
[1733644352824,0.045059,99804.0,99803.0,0.0604624]
[1733644353827,0.16507967,99804.0,99803.0,0.0604624]
[1733644354018,0.045059,99804.0,99803.0,0.0604624]
[1733644355532,0.12002067,99805.0,99804.0,0.045059]
[1733644355727,0.12002067,99805.0,99804.0,0.05946192]
[1733644355928,0.12002067,99806.0,99804.0,0.01440292]
[1733644356126,0.12002067,99806.0,99805.0,0.05946092]
[1733644356328,0.16507767,99807.0,99805.0,0.01440292]
[1733644356529,0.045057,99807.0,99806.0,0.05946092]
[1733644357930,0.045057,99807.0,99806.0,0.05980802]
[1733644358329,0.045057,99807.0,99806.0,0.05946092]
[1733644359030,0.045057,99807.0,99806.0,0.05946066]
[1733644360626,0.511377,99810.0,99809.0,0.045056]
[1733644360828,0.51077699,99810.0,99809.0,0.0598061]
[1733644361229,0.3608,99810.0,99809.0,0.0598061]
[1733644361732,0.51077699,99810.0,99809.0,0.0598061]
[1733644361927,0.51177699,99810.0,99809.0,0.0598061]
[1733644362432,0.51177699,99810.0,99809.0,0.045056]
[1733644362433,0.51277699,99810.0,99809.0,0.045056]
[1733644362633,0.51277699,99810.0,99809.0,0.05980605]
[1733644362835,0.51277699,99810.0,99809.0,0.05980604]
[1733644363336,0.3628,99810.0,99809.0,0.05945856]
[1733644364531,0.51277699,99810.0,99809.0,0.06925281]
[1733644364831,0.3628,99810.0,99809.0,0.06925281]
[1733644365838,0.3628,99810.0,99809.0,0.24924817]
[1733644366138,0.3628,99810.0,99809.0,0.2492477]
[1733644366533,0.002,99810.0,99809.0,0.06925234]
[1733644367239,0.0920764,99810.0,99809.0,0.10181055]
[1733644367442,0.09205919,99810.0,99809.0,0.10181055]
[1733644367635,0.002,99810.0,99809.0,0.10181055]
[1733644367839,0.09206558,99810.0,99809.0,0.10181055]
[1733644368440,0.09206558,99810.0,99809.0,0.34167112]
[1733644368844,0.09206558,99810.0,99809.0,0.70247112]
[1733644370040,0.002,99810.0,99809.0,0.70247112]
[1733644371335,0.002,99810.0,99809.0,0.46261055]
[1733644373144,0.002,99810.0,99809.0,0.4626094]
[1733644373334,0.002,99810.0,99809.0,0.44820846]
[1733644373535,0.002,99810.0,99809.0,0.4626094]
[1733644373736,0.002,99810.0,99809.0,0.46260987]
[1733644375453,0.09204683,99810.0,99809.0,0.10180987]
[1733644375748,0.09204683,99810.0,99809.0,0.46260987]
[1733644378751,0.09204683,99810.0,99809.0,0.46853932]
[1733644378949,0.09204683,99810.0,99809.0,0.48294035]
[1733644380349,0.002,99810.0,99809.0,0.48294035]
[1733644380945,0.002,99810.0,99809.0,0.12214035]
[1733644381141,0.002,99810.0,99809.0,0.48294035]
[1733644382454,0.09204683,99810.0,99809.0,0.43598045]
[1733644382754,0.09204683,99810.0,99809.0,0.48294035]
[1733644383256,0.09204683,99810.0,99809.0,0.46853932]
[1733644383555,0.09204683,99810.0,99809.0,0.48294035]
[1733644387649,0.002,99810.0,99809.0,0.48294035]
[1733644388056,0.002,99810.0,99809.0,0.45038159]
[1733644389053,0.002,99810.0,99809.0,0.48294057]
[1733644389353,0.002,99810.0,99809.0,0.45038159]
[1733644389554,0.002,99810.0,99809.0,0.69026519]
[1733644389747,0.002,99810.0,99809.0,0.72282417]
[1733644389947,0.09205312,99810.0,99809.0,0.48294057]
[1733644390359,0.002,99810.0,99809.0,0.48294057]
[1733644390850,0.09206003,99810.0,99809.0,0.48294057]
[1733644391450,0.002,99810.0,99809.0,0.48294057]
[1733644392646,0.002,99810.0,99809.0,0.12214057]
[1733644392855,0.002,99810.0,99809.0,0.45038159]
[1733644393053,0.002,99810.0,99809.0,0.48294004]
[1733644394856,0.12206244,99810.0,99809.0,0.48294004]
[1733644395657,0.002,99810.0,99809.0,0.48294004]
[1733644396246,0.12216449,99810.0,99809.0,0.48294004]
[1733644396564,0.002,99810.0,99809.0,0.48294049]
[1733644397450,0.12219573,99810.0,99809.0,0.48294044]
[1733644397857,0.12219573,99810.0,99809.0,0.48294034]
[1733644399852,0.12219573,99810.0,99809.0,0.4829401]
[1733644400057,0.12519573,99811.0,99809.0,1.07491941]
[1733644400255,0.01,99818.0,99809.0,1.07491941]
[1733644400256,0.12019573,99812.0,99811.0,0.045055]
[1733644400556,0.01,99826.0,99825.0,0.045049]
[1733644400755,0.15019586,99827.0,99826.0,0.045049]
[1733644400756,0.00011781,99827.0,99826.0,0.045049]
[1733644401058,0.00011781,99827.0,99826.0,0.05945004]
[1733644402564,0.00011781,99827.0,99826.0,0.0597974]
[1733644403063,0.00011781,99827.0,99826.0,0.05945004]
[1733644403263,0.00011781,99827.0,99826.0,0.045049]
[1733644403458,0.00011781,99827.0,99826.0,0.05944858]
[1733644403656,0.00011781,99827.0,99826.0,0.045049]
[1733644403859,0.00011781,99827.0,99826.0,0.05944853]
[1733644404062,0.00011781,99827.0,99826.0,0.06044853]
[1733644405363,0.00011781,99827.0,99826.0,0.24031388]
[1733644406165,0.00011781,99827.0,99826.0,0.06044853]
[1733644406869,0.00011781,99827.0,99826.0,0.06044854]
[1733644408071,0.00011781,99827.0,99826.0,0.07065418]
[1733644409273,0.00011781,99827.0,99826.0,0.25046563]
[1733644410468,0.00011781,99827.0,99826.0,0.25046565]
[1733644413268,0.00011781,99827.0,99826.0,0.0706542]
[1733644414060,0.00011781,99827.0,99826.0,0.05625464]
[1733644414267,0.00011781,99827.0,99826.0,0.07065425]
[1733644415472,0.00011781,99827.0,99826.0,0.07100117]
[1733644415683,0.00011781,99827.0,99826.0,0.07065425]
[1733644418578,0.00011781,99827.0,99826.0,0.07100117]
[1733644420572,0.15019586,99827.0,99826.0,0.07100117]
[1733644420763,0.15019586,99827.0,99826.0,0.07100178]
[1733644423276,0.04516581,99827.0,99826.0,0.07100178]
[1733644423481,0.40596581,99827.0,99826.0,0.07100178]
[1733644424487,0.45465598,99827.0,99826.0,0.07100178]
[1733644426277,0.45465598,99827.0,99826.0,0.07065487]
[1733644427884,0.45465598,99827.0,99826.0,0.05625464]
[1733644428086,0.45465598,99827.0,99826.0,0.07065494]
[1733644429086,0.45465609,99827.0,99826.0,0.07065494]
[1733644431174,0.45465609,99827.0,99826.0,0.06251564]
[1733644431380,0.45465609,99827.0,99826.0,0.07065494]
[1733644434090,0.45465598,99827.0,99826.0,0.07065494]
[1733644434677,0.45465598,99827.0,99826.0,0.0706549]
[1733644435386,0.454656,99827.0,99826.0,0.0706549]
[1733644438290,0.454656,99827.0,99826.0,0.07065494]
[1733644438891,0.454656,99827.0,99826.0,0.05625464]
[1733644439096,0.45465605,99827.0,99826.0,0.07065494]
[1733644440982,0.45465605,99827.0,99826.0,0.05625464]
[1733644441295,0.45465605,99827.0,99826.0,0.07065494]
[1733644442292,0.45465608,99827.0,99826.0,0.07065494]
[1733644443086,0.09385608,99827.0,99826.0,0.07065494]
[1733644443291,0.45465608,99827.0,99826.0,0.07065494]
[1733644444796,0.09385608,99827.0,99826.0,0.07065494]
[1733644444994,0.45465608,99827.0,99826.0,0.07065494]
[1733644445901,0.45465608,99827.0,99826.0,0.05625464]
[1733644446198,0.09385608,99827.0,99826.0,0.05625464]
[1733644446502,0.45465608,99827.0,99826.0,0.05625464]
[1733644446794,0.45465608,99827.0,99826.0,0.07065494]
[1733644447988,0.45465608,99827.0,99826.0,0.06564614]
[1733644448197,0.63474974,99827.0,99826.0,0.07065494]
[1733644448396,0.45465608,99827.0,99826.0,0.07065494]
[1733644449703,0.45465608,99827.0,99826.0,0.0604493]
[1733644451800,0.45465608,99827.0,99826.0,0.0604496]
[1733644453405,0.09385608,99827.0,99826.0,0.0604496]
[1733644453606,0.45465608,99827.0,99826.0,0.0604496]
[1733644454895,0.45465608,99827.0,99826.0,0.046049]
[1733644455109,0.45465608,99827.0,99826.0,0.06044959]
[1733644457097,0.45465713,99827.0,99826.0,0.06044959]
[1733644458401,0.45465713,99827.0,99826.0,0.06079688]
[1733644459805,0.09385713,99827.0,99826.0,0.06044959]
[1733644460099,0.09385713,99827.0,99826.0,0.01540059]
[1733644460100,0.46465713,99827.0,99826.0,0.01540059]
[1733644462010,0.57324648,99827.0,99826.0,0.01540059]
[1733644462201,0.04505,99822.0,99821.0,0.005]
[1733644462511,0.11374132,99822.0,99821.0,0.01440182]
[1733644463509,0.11374132,99822.0,99821.0,0.01540182]
[1733644464415,0.11374132,99822.0,99821.0,0.01640182]
[1733644465710,0.06505,99822.0,99821.0,0.01640182]
[1733644465905,0.11374132,99822.0,99821.0,0.01640182]
[1733644466210,0.11374132,99822.0,99821.0,0.01540182]
[1733644466516,0.2451427,99822.0,99821.0,0.01540182]
[1733644466710,0.2938386,99822.0,99821.0,0.01540182]
[1733644467712,0.1137459,99822.0,99821.0,0.01540182]
[1733644467912,0.1137459,99822.0,99821.0,0.01440182]
[1733644467913,0.0947459,99822.0,99821.0,0.01440182]
[1733644468224,0.4555459,99822.0,99821.0,0.01440182]
[1733644468907,0.0947459,99822.0,99821.0,0.01440182]
[1733644469215,0.0947459,99822.0,99816.0,0.005]
[1733644469216,0.045053,99817.0,99816.0,0.005]
[1733644469417,0.045055,99813.0,99812.0,0.00990142]
[1733644469719,0.045055,99813.0,99812.0,0.01474913]
[1733644470212,0.045055,99813.0,99812.0,0.01440202]
[1733644471116,0.045055,99813.0,99812.0,0.01574913]
[1733644472115,0.045055,99813.0,99812.0,0.01540202]
[1733644472303,0.045055,99813.0,99812.0,0.01640202]
[1733644472809,0.045055,99813.0,99812.0,0.0164026]
[1733644473113,0.405855,99813.0,99812.0,0.0164026]
[1733644473308,0.55591192,99813.0,99812.0,0.0164026]
[1733644473503,0.55591192,99813.0,99812.0,0.0154026]
[1733644473704,0.55591192,99813.0,99812.0,0.0164026]
[1733644474310,0.45455453,99813.0,99812.0,0.0164026]
[1733644474521,0.405855,99813.0,99812.0,0.0164026]
[1733644475014,0.45455453,99813.0,99812.0,0.0154026]
[1733644475214,0.45455481,99813.0,99812.0,0.0164026]
[1733644476016,0.45455481,99813.0,99812.0,0.0154026]
[1733644476212,0.45455481,99813.0,99812.0,0.01640344]
[1733644478316,0.46472307,99813.0,99812.0,0.01640344]
[1733644481419,0.46472416,99813.0,99812.0,0.01640344]
[1733644483312,0.46472416,99813.0,99812.0,0.002]
[1733644483514,0.46472416,99813.0,99812.0,0.01640344]
[1733644485114,0.64481686,99813.0,99812.0,0.002]
[1733644485311,0.68481686,99813.0,99812.0,0.01014112]
[1733644485513,0.50472416,99813.0,99812.0,0.01014112]
[1733644486817,0.50472416,99813.0,99812.0,0.002]